Workbook

Sheet Auswertung
B2: Vorschaurechnung: | D2: Kostenstelle | E2: K2401
B4: Jahr: | C4: 2012 | E4: Hochrechnung:
B5: von Monat: | C5: 1 | E5: HR.3 | F5: =OFFSET(KnotenFormel,MATCH(E5,Formel,0),1) -> Ist kum + (restliche Planwerte*Faktor)
B6: bis Monat: | C6: 6 | E6: =IF(E5="HR.3","Faktor","") -> Faktor | F6: 1.02
B10: Kennziffer | C10: Plan | D10: Ist | E10: Abweichung | G10: Plan | H10: Vorschau | I10: Abweichung
C11: =$C$5&" bis "&$C$6 -> 1 bis 6 | D11: =$C$5&" bis "&$C$6 -> 1 bis 6 | E11: abs. | F11: % | G11: =$C$5&" bis 12" -> 1 bis 12 | H11: 1 bis 12 | I11: abs. | J11: %
A12: 1 | B12: Umsatz | C12: =SUM(INDEX(INDIRECT($E$2&$C$10&$C$4),MATCH($B12,Kennziffer,0),$C$5):INDEX(INDIRECT($E$2&$C$10&$C$4),MATCH($B12,Kennziffer,0),$C$6)) -> 56400 | D12: =SUM(INDEX(INDIRECT($E$2&$D$10&$C$4),MATCH($B12,Kennziffer,0),$C$5):INDEX(INDIRECT($E$2&$D$10&$C$4),MATCH($B12,Kennziffer,0),$C$6)) -> 55680 | E12: =D12-C12 -> -720 | F12: =E12/C12*100 -> -1.276595745 | G12: =SUM(INDEX(INDIRECT($E$2&$C$10&$C$4),MATCH($B12,Kennziffer,0),$C$5):INDEX(INDIRECT($E$2&$C$10&$C$4),MATCH($B12,Kennziffer,0),12)) -> 112800 | H12: =IF($C$6=12,$D12,IF($E$5="HR.1",$D12/$C$6*12,IF($E$5="HR.2",$D12+SUM(INDEX(INDIRECT($E$2&$C$10&$C$4),$A12,$C$6+1):INDEX(INDIRECT($E$2&$C$10&$C$4),$A12,12)),IF($E$5="HR.3",$D12+(SUM(INDEX(INDIRECT($E$2&$C$10&$C$4),$A12,$C$6+1):INDEX(INDIRECT($E$2&$C$10&$C$4),$A12,12))*$F$6),"")))) -> 113208 | I12: =H12-G12 -> 408 | J12: =I12/G12*100 -> 0.3617021277
A13: 2 | B13: Material | C13: =SUM(INDEX(INDIRECT($E$2&$C$10&$C$4),MATCH($B13,Kennziffer,0),$C$5):INDEX(INDIRECT($E$2&$C$10&$C$4),MATCH($B13,Kennziffer,0),$C$6)) -> 13800 | D13: =SUM(INDEX(INDIRECT($E$2&$D$10&$C$4),MATCH($B13,Kennziffer,0),$C$5):INDEX(INDIRECT($E$2&$D$10&$C$4),MATCH($B13,Kennziffer,0),$C$6)) -> 14100 | E13: =D13-C13 -> 300 | F13: =E13/C13*100 -> 2.173913043 | G13: =SUM(INDEX(INDIRECT($E$2&$C$10&$C$4),MATCH($B13,Kennziffer,0),$C$5):INDEX(INDIRECT($E$2&$C$10&$C$4),MATCH($B13,Kennziffer,0),12)) -> 27600 | H13: =IF($C$6=12,$D13,IF($E$5="HR.1",$D13/$C$6*12,IF($E$5="HR.2",$D13+SUM(INDEX(INDIRECT($E$2&$C$10&$C$4),$A13,$C$6+1):INDEX(INDIRECT($E$2&$C$10&$C$4),$A13,12)),IF($E$5="HR.3",$D13+(SUM(INDEX(INDIRECT($E$2&$C$10&$C$4),$A13,$C$6+1):INDEX(INDIRECT($E$2&$C$10&$C$4),$A13,12))*$F$6),"")))) -> 28176 | I13: =H13-G13 -> 576 | J13: =I13/G13*100 -> 2.086956522
A14: 3 | B14: Fremdleistungen | C14: =SUM(INDEX(INDIRECT($E$2&$C$10&$C$4),MATCH($B14,Kennziffer,0),$C$5):INDEX(INDIRECT($E$2&$C$10&$C$4),MATCH($B14,Kennziffer,0),$C$6)) -> 6600 | D14: =SUM(INDEX(INDIRECT($E$2&$D$10&$C$4),MATCH($B14,Kennziffer,0),$C$5):INDEX(INDIRECT($E$2&$D$10&$C$4),MATCH($B14,Kennziffer,0),$C$6)) -> 6420 | E14: -180 | F14: -2.727272727 | G14: =SUM(INDEX(INDIRECT($E$2&$C$10&$C$4),MATCH($B14,Kennziffer,0),$C$5):INDEX(INDIRECT($E$2&$C$10&$C$4),MATCH($B14,Kennziffer,0),12)) -> 13200 | H14: =IF($C$6=12,$D14,IF($E$5="HR.1",$D14/$C$6*12,IF($E$5="HR.2",$D14+SUM(INDEX(INDIRECT($E$2&$C$10&$C$4),$A14,$C$6+1):INDEX(INDIRECT($E$2&$C$10&$C$4),$A14,12)),IF($E$5="HR.3",$D14+(SUM(INDEX(INDIRECT($E$2&$C$10&$C$4),$A14,$C$6+1):INDEX(INDIRECT($E$2&$C$10&$C$4),$A14,12))*$F$6),"")))) -> 13152 | I14: -48 | J14: -0.3636363636
A15: 4 | B15: Personal | C15: =SUM(INDEX(INDIRECT($E$2&$C$10&$C$4),MATCH($B15,Kennziffer,0),$C$5):INDEX(INDIRECT($E$2&$C$10&$C$4),MATCH($B15,Kennziffer,0),$C$6)) -> 14400 | D15: =SUM(INDEX(INDIRECT($E$2&$D$10&$C$4),MATCH($B15,Kennziffer,0),$C$5):INDEX(INDIRECT($E$2&$D$10&$C$4),MATCH($B15,Kennziffer,0),$C$6)) -> 13740 | E15: -660 | F15: -4.583333333 | G15: =SUM(INDEX(INDIRECT($E$2&$C$10&$C$4),MATCH($B15,Kennziffer,0),$C$5):INDEX(INDIRECT($E$2&$C$10&$C$4),MATCH($B15,Kennziffer,0),12)) -> 28800 | H15: =IF($C$6=12,$D15,IF($E$5="HR.1",$D15/$C$6*12,IF($E$5="HR.2",$D15+SUM(INDEX(INDIRECT($E$2&$C$10&$C$4),$A15,$C$6+1):INDEX(INDIRECT($E$2&$C$10&$C$4),$A15,12)),IF($E$5="HR.3",$D15+(SUM(INDEX(INDIRECT($E$2&$C$10&$C$4),$A15,$C$6+1):INDEX(INDIRECT($E$2&$C$10&$C$4),$A15,12))*$F$6),"")))) -> 28428 | I15: -372 | J15: -1.291666667
A16: 5 | B16: Abschreibungen | C16: =SUM(INDEX(INDIRECT($E$2&$C$10&$C$4),MATCH($B16,Kennziffer,0),$C$5):INDEX(INDIRECT($E$2&$C$10&$C$4),MATCH($B16,Kennziffer,0),$C$6)) -> 10800 | D16: =SUM(INDEX(INDIRECT($E$2&$D$10&$C$4),MATCH($B16,Kennziffer,0),$C$5):INDEX(INDIRECT($E$2&$D$10&$C$4),MATCH($B16,Kennziffer,0),$C$6)) -> 10800 | E16: 0 | F16: 0 | G16: =SUM(INDEX(INDIRECT($E$2&$C$10&$C$4),MATCH($B16,Kennziffer,0),$C$5):INDEX(INDIRECT($E$2&$C$10&$C$4),MATCH($B16,Kennziffer,0),12)) -> 21600 | H16: =IF($C$6=12,$D16,IF($E$5="HR.1",$D16/$C$6*12,IF($E$5="HR.2",$D16+SUM(INDEX(INDIRECT($E$2&$C$10&$C$4),$A16,$C$6+1):INDEX(INDIRECT($E$2&$C$10&$C$4),$A16,12)),IF($E$5="HR.3",$D16+(SUM(INDEX(INDIRECT($E$2&$C$10&$C$4),$A16,$C$6+1):INDEX(INDIRECT($E$2&$C$10&$C$4),$A16,12))*$F$6),"")))) -> 21816 | I16: 216 | J16: 1
A17: 6 | B17: Sonstiges | C17: =SUM(INDEX(INDIRECT($E$2&$C$10&$C$4),MATCH($B17,Kennziffer,0),$C$5):INDEX(INDIRECT($E$2&$C$10&$C$4),MATCH($B17,Kennziffer,0),$C$6)) -> 4200 | D17: =SUM(INDEX(INDIRECT($E$2&$D$10&$C$4),MATCH($B17,Kennziffer,0),$C$5):INDEX(INDIRECT($E$2&$D$10&$C$4),MATCH($B17,Kennziffer,0),$C$6)) -> 3780 | E17: -420 | F17: -10 | G17: =SUM(INDEX(INDIRECT($E$2&$C$10&$C$4),MATCH($B17,Kennziffer,0),$C$5):INDEX(INDIRECT($E$2&$C$10&$C$4),MATCH($B17,Kennziffer,0),12)) -> 8400 | H17: =IF($C$6=12,$D17,IF($E$5="HR.1",$D17/$C$6*12,IF($E$5="HR.2",$D17+SUM(INDEX(INDIRECT($E$2&$C$10&$C$4),$A17,$C$6+1):INDEX(INDIRECT($E$2&$C$10&$C$4),$A17,12)),IF($E$5="HR.3",$D17+(SUM(INDEX(INDIRECT($E$2&$C$10&$C$4),$A17,$C$6+1):INDEX(INDIRECT($E$2&$C$10&$C$4),$A17,12))*$F$6),"")))) -> 8064 | I17: -336 | J17: -4
A18: 7 | B18: Zinsen | C18: =SUM(INDEX(INDIRECT($E$2&$C$10&$C$4),MATCH($B18,Kennziffer,0),$C$5):INDEX(INDIRECT($E$2&$C$10&$C$4),MATCH($B18,Kennziffer,0),$C$6)) -> 1320 | D18: =SUM(INDEX(INDIRECT($E$2&$D$10&$C$4),MATCH($B18,Kennziffer,0),$C$5):INDEX(INDIRECT($E$2&$D$10&$C$4),MATCH($B18,Kennziffer,0),$C$6)) -> 1320 | E18: 0 | F18: 0 | G18: =SUM(INDEX(INDIRECT($E$2&$C$10&$C$4),MATCH($B18,Kennziffer,0),$C$5):INDEX(INDIRECT($E$2&$C$10&$C$4),MATCH($B18,Kennziffer,0),12)) -> 2640 | H18: =IF($C$6=12,$D18,IF($E$5="HR.1",$D18/$C$6*12,IF($E$5="HR.2",$D18+SUM(INDEX(INDIRECT($E$2&$C$10&$C$4),$A18,$C$6+1):INDEX(INDIRECT($E$2&$C$10&$C$4),$A18,12)),IF($E$5="HR.3",$D18+(SUM(INDEX(INDIRECT($E$2&$C$10&$C$4),$A18,$C$6+1):INDEX(INDIRECT($E$2&$C$10&$C$4),$A18,12))*$F$6),"")))) -> 2666.4 | I18: 26.4 | J18: 1
B19: Ergebnis | C19: =C12-C13-C14-C15-C16-C17-C18 -> 5280 | D19: 5520 | E19: 240 | F19: 4.545454545 | G19: =G12-G13-G14-G15-G16-G17-G18 -> 10560 | H19: 10905.6 | I19: 345.6 | J19: 3.272727273
B22: Formeln:
B23: C12 | C23: =SUMME(INDEX(INDIREKT($E$2&$C$10&$C$4);VERGLEICH($B12;Kennziffer;0);$C$5):INDEX(INDIREKT($E$2&$C$10&$C$4);VERGLEICH($B12;Kennziffer;0);$C$6))
B24: D12 | C24: =SUMME(INDEX(INDIREKT($E$2&$D$10&$C$4);VERGLEICH($B12;Kennziffer;0);$C$5):INDEX(INDIREKT($E$2&$D$10&$C$4);VERGLEICH($B12;Kennziffer;0);$C$6))
B25: E2 | C25: Gültigkeit: | E25: Liste KST
B26: E12 | C26: =D12-C12
B27: F12 | C27: =E12/C12*100
B28: G12 | C28: =SUMME(INDEX(INDIREKT($E$2&$C$10&$C$4);VERGLEICH($B12;Kennziffer;0);$C$5):INDEX(INDIREKT($E$2&$C$10&$C$4);VERGLEICH($B12;Kennziffer;0);12))
B29: H12 | C29: =WENN($C$6=12;$D12;WENN($E$5="HR.1";$D12/$C$6*12;WENN($E$5="HR.2";$D12+SUMME(INDEX(INDIREKT($E$2&$C$10&$C$4);$A12;$C$6+1):INDEX(INDIREKT($E$2&$C$10&$C$4);$A12;12));WENN($E$5="HR.3";$D12+(SUMME(INDEX(INDIREKT($E$2&$C$10&$C$4);$A12;$C$6+1):INDEX(INDIREKT($E$2&$C$10&$C$4);$A12;12))*$F$6);""))))
B30: I12 | C30: =H12-G12
B31: J12 | C31: =I12/G12*100
B32: C4 | C32: Gültigkeit: | E32: Liste Jahr
B33: C5 | C33: feste Eingabe | E33: 1
B34: C6 | C34: Gültigkeit: | E34: Liste Monat
B35: E5 | C35: Gültigkeit: | E35: Liste Formel
B36: F5 | C36: =BEREICH.VERSCHIEBEN(KnotenFormel;VERGLEICH(E5;Formel;0);1)
B37: E6 | C37: =WENN(E5="HR.3";"Faktor";"")
B38: F6 | C38: Gültigkeit: | E38: Liste Faktor
C39: bezieht sich auf: | E39: =INDIREKT(E6)
B40: F6 | C40: bedingte Formatierung | E40: =E6="" | H40: wie Untergrund grau einfärben
B41: J12:J19 | C41: bedingte Formatierung | E41: Zellwert zwischen -1 und 1 | H41: grün einfärben

Sheet Vorauswertung
A2: Daten Plan 2012
A4: Gesamt | B4: 1 | C4: 2 | D4: 3 | E4: 4 | F4: 5 | G4: 6 | H4: 7 | I4: 8 | J4: 9 | K4: 10 | L4: 11 | M4: 12
A5: Umsatz | B5: =SUMIF('DatenPlan 2012'!$A$1:$A$38,"Umsatz",'DatenPlan 2012'!B$1:B$38) -> 37300 | C5: =SUMIF('DatenPlan 2012'!$A$1:$A$38,"Umsatz",'DatenPlan 2012'!C$1:C$38) -> 37300 | D5: =SUMIF('DatenPlan 2012'!$A$1:$A$38,"Umsatz",'DatenPlan 2012'!D$1:D$38) -> 37300 | E5: =SUMIF('DatenPlan 2012'!$A$1:$A$38,"Umsatz",'DatenPlan 2012'!E$1:E$38) -> 37300 | F5: =SUMIF('DatenPlan 2012'!$A$1:$A$38,"Umsatz",'DatenPlan 2012'!F$1:F$38) -> 37300 | G5: =SUMIF('DatenPlan 2012'!$A$1:$A$38,"Umsatz",'DatenPlan 2012'!G$1:G$38) -> 37300 | H5: =SUMIF('DatenPlan 2012'!$A$1:$A$38,"Umsatz",'DatenPlan 2012'!H$1:H$38) -> 37300 | I5: =SUMIF('DatenPlan 2012'!$A$1:$A$38,"Umsatz",'DatenPlan 2012'!I$1:I$38) -> 37300 | J5: =SUMIF('DatenPlan 2012'!$A$1:$A$38,"Umsatz",'DatenPlan 2012'!J$1:J$38) -> 37300 | K5: =SUMIF('DatenPlan 2012'!$A$1:$A$38,"Umsatz",'DatenPlan 2012'!K$1:K$38) -> 37300 | L5: =SUMIF('DatenPlan 2012'!$A$1:$A$38,"Umsatz",'DatenPlan 2012'!L$1:L$38) -> 37300 | M5: =SUMIF('DatenPlan 2012'!$A$1:$A$38,"Umsatz",'DatenPlan 2012'!M$1:M$38) -> 37300
A6: Material | B6: =SUMIF('DatenPlan 2012'!$A$1:$A$38,"Material",'DatenPlan 2012'!B$1:B$38) -> 8600 | C6: =SUMIF('DatenPlan 2012'!$A$1:$A$38,"Material",'DatenPlan 2012'!C$1:C$38) -> 8600 | D6: =SUMIF('DatenPlan 2012'!$A$1:$A$38,"Material",'DatenPlan 2012'!D$1:D$38) -> 8600 | E6: =SUMIF('DatenPlan 2012'!$A$1:$A$38,"Material",'DatenPlan 2012'!E$1:E$38) -> 8600 | F6: =SUMIF('DatenPlan 2012'!$A$1:$A$38,"Material",'DatenPlan 2012'!F$1:F$38) -> 8600 | G6: =SUMIF('DatenPlan 2012'!$A$1:$A$38,"Material",'DatenPlan 2012'!G$1:G$38) -> 8600 | H6: =SUMIF('DatenPlan 2012'!$A$1:$A$38,"Material",'DatenPlan 2012'!H$1:H$38) -> 8600 | I6: =SUMIF('DatenPlan 2012'!$A$1:$A$38,"Material",'DatenPlan 2012'!I$1:I$38) -> 8600 | J6: =SUMIF('DatenPlan 2012'!$A$1:$A$38,"Material",'DatenPlan 2012'!J$1:J$38) -> 8600 | K6: =SUMIF('DatenPlan 2012'!$A$1:$A$38,"Material",'DatenPlan 2012'!K$1:K$38) -> 8600 | L6: =SUMIF('DatenPlan 2012'!$A$1:$A$38,"Material",'DatenPlan 2012'!L$1:L$38) -> 8600 | M6: =SUMIF('DatenPlan 2012'!$A$1:$A$38,"Material",'DatenPlan 2012'!M$1:M$38) -> 8600
A7: Fremdleistungen | B7: =SUMIF('DatenPlan 2012'!$A$1:$A$38,"Fremdleistungen",'DatenPlan 2012'!B$1:B$38) -> 4700 | C7: =SUMIF('DatenPlan 2012'!$A$1:$A$38,"Fremdleistungen",'DatenPlan 2012'!C$1:C$38) -> 4700 | D7: =SUMIF('DatenPlan 2012'!$A$1:$A$38,"Fremdleistungen",'DatenPlan 2012'!D$1:D$38) -> 4700 | E7: =SUMIF('DatenPlan 2012'!$A$1:$A$38,"Fremdleistungen",'DatenPlan 2012'!E$1:E$38) -> 4700 | F7: =SUMIF('DatenPlan 2012'!$A$1:$A$38,"Fremdleistungen",'DatenPlan 2012'!F$1:F$38) -> 4700 | G7: =SUMIF('DatenPlan 2012'!$A$1:$A$38,"Fremdleistungen",'DatenPlan 2012'!G$1:G$38) -> 4700 | H7: =SUMIF('DatenPlan 2012'!$A$1:$A$38,"Fremdleistungen",'DatenPlan 2012'!H$1:H$38) -> 4700 | I7: =SUMIF('DatenPlan 2012'!$A$1:$A$38,"Fremdleistungen",'DatenPlan 2012'!I$1:I$38) -> 4700 | J7: =SUMIF('DatenPlan 2012'!$A$1:$A$38,"Fremdleistungen",'DatenPlan 2012'!J$1:J$38) -> 4700 | K7: =SUMIF('DatenPlan 2012'!$A$1:$A$38,"Fremdleistungen",'DatenPlan 2012'!K$1:K$38) -> 4700 | L7: =SUMIF('DatenPlan 2012'!$A$1:$A$38,"Fremdleistungen",'DatenPlan 2012'!L$1:L$38) -> 4700 | M7: =SUMIF('DatenPlan 2012'!$A$1:$A$38,"Fremdleistungen",'DatenPlan 2012'!M$1:M$38) -> 4700
A8: Personal | B8: =SUMIF('DatenPlan 2012'!$A$1:$A$38,"Personal",'DatenPlan 2012'!B$1:B$38) -> 9900 | C8: =SUMIF('DatenPlan 2012'!$A$1:$A$38,"Personal",'DatenPlan 2012'!C$1:C$38) -> 9900 | D8: =SUMIF('DatenPlan 2012'!$A$1:$A$38,"Personal",'DatenPlan 2012'!D$1:D$38) -> 9900 | E8: =SUMIF('DatenPlan 2012'!$A$1:$A$38,"Personal",'DatenPlan 2012'!E$1:E$38) -> 9900 | F8: =SUMIF('DatenPlan 2012'!$A$1:$A$38,"Personal",'DatenPlan 2012'!F$1:F$38) -> 9900 | G8: =SUMIF('DatenPlan 2012'!$A$1:$A$38,"Personal",'DatenPlan 2012'!G$1:G$38) -> 9900 | H8: =SUMIF('DatenPlan 2012'!$A$1:$A$38,"Personal",'DatenPlan 2012'!H$1:H$38) -> 9900 | I8: =SUMIF('DatenPlan 2012'!$A$1:$A$38,"Personal",'DatenPlan 2012'!I$1:I$38) -> 9900 | J8: =SUMIF('DatenPlan 2012'!$A$1:$A$38,"Personal",'DatenPlan 2012'!J$1:J$38) -> 9900 | K8: =SUMIF('DatenPlan 2012'!$A$1:$A$38,"Personal",'DatenPlan 2012'!K$1:K$38) -> 9900 | L8: =SUMIF('DatenPlan 2012'!$A$1:$A$38,"Personal",'DatenPlan 2012'!L$1:L$38) -> 9900 | M8: =SUMIF('DatenPlan 2012'!$A$1:$A$38,"Personal",'DatenPlan 2012'!M$1:M$38) -> 9900
A9: Abschreibungen | B9: =SUMIF('DatenPlan 2012'!$A$1:$A$38,"Abschreibungen",'DatenPlan 2012'!B$1:B$38) -> 7200 | C9: =SUMIF('DatenPlan 2012'!$A$1:$A$38,"Abschreibungen",'DatenPlan 2012'!C$1:C$38) -> 7200 | D9: =SUMIF('DatenPlan 2012'!$A$1:$A$38,"Abschreibungen",'DatenPlan 2012'!D$1:D$38) -> 7200 | E9: =SUMIF('DatenPlan 2012'!$A$1:$A$38,"Abschreibungen",'DatenPlan 2012'!E$1:E$38) -> 7200 | F9: =SUMIF('DatenPlan 2012'!$A$1:$A$38,"Abschreibungen",'DatenPlan 2012'!F$1:F$38) -> 7200 | G9: =SUMIF('DatenPlan 2012'!$A$1:$A$38,"Abschreibungen",'DatenPlan 2012'!G$1:G$38) -> 7200 | H9: =SUMIF('DatenPlan 2012'!$A$1:$A$38,"Abschreibungen",'DatenPlan 2012'!H$1:H$38) -> 7200 | I9: =SUMIF('DatenPlan 2012'!$A$1:$A$38,"Abschreibungen",'DatenPlan 2012'!I$1:I$38) -> 7200 | J9: =SUMIF('DatenPlan 2012'!$A$1:$A$38,"Abschreibungen",'DatenPlan 2012'!J$1:J$38) -> 7200 | K9: =SUMIF('DatenPlan 2012'!$A$1:$A$38,"Abschreibungen",'DatenPlan 2012'!K$1:K$38) -> 7200 | L9: =SUMIF('DatenPlan 2012'!$A$1:$A$38,"Abschreibungen",'DatenPlan 2012'!L$1:L$38) -> 7200 | M9: =SUMIF('DatenPlan 2012'!$A$1:$A$38,"Abschreibungen",'DatenPlan 2012'!M$1:M$38) -> 7200
A10: Sonstiges | B10: =SUMIF('DatenPlan 2012'!$A$1:$A$38,"Sonstiges",'DatenPlan 2012'!B$1:B$38) -> 4300 | C10: =SUMIF('DatenPlan 2012'!$A$1:$A$38,"Sonstiges",'DatenPlan 2012'!C$1:C$38) -> 4300 | D10: =SUMIF('DatenPlan 2012'!$A$1:$A$38,"Sonstiges",'DatenPlan 2012'!D$1:D$38) -> 4300 | E10: =SUMIF('DatenPlan 2012'!$A$1:$A$38,"Sonstiges",'DatenPlan 2012'!E$1:E$38) -> 4300 | F10: =SUMIF('DatenPlan 2012'!$A$1:$A$38,"Sonstiges",'DatenPlan 2012'!F$1:F$38) -> 4300 | G10: =SUMIF('DatenPlan 2012'!$A$1:$A$38,"Sonstiges",'DatenPlan 2012'!G$1:G$38) -> 4300 | H10: =SUMIF('DatenPlan 2012'!$A$1:$A$38,"Sonstiges",'DatenPlan 2012'!H$1:H$38) -> 4300 | I10: =SUMIF('DatenPlan 2012'!$A$1:$A$38,"Sonstiges",'DatenPlan 2012'!I$1:I$38) -> 4300 | J10: =SUMIF('DatenPlan 2012'!$A$1:$A$38,"Sonstiges",'DatenPlan 2012'!J$1:J$38) -> 4300 | K10: =SUMIF('DatenPlan 2012'!$A$1:$A$38,"Sonstiges",'DatenPlan 2012'!K$1:K$38) -> 4300 | L10: =SUMIF('DatenPlan 2012'!$A$1:$A$38,"Sonstiges",'DatenPlan 2012'!L$1:L$38) -> 4300 | M10: =SUMIF('DatenPlan 2012'!$A$1:$A$38,"Sonstiges",'DatenPlan 2012'!M$1:M$38) -> 4300
A11: Zinsen | B11: =SUMIF('DatenPlan 2012'!$A$1:$A$38,"Zinsen",'DatenPlan 2012'!B$1:B$38) -> 850 | C11: =SUMIF('DatenPlan 2012'!$A$1:$A$38,"Zinsen",'DatenPlan 2012'!C$1:C$38) -> 850 | D11: =SUMIF('DatenPlan 2012'!$A$1:$A$38,"Zinsen",'DatenPlan 2012'!D$1:D$38) -> 850 | E11: =SUMIF('DatenPlan 2012'!$A$1:$A$38,"Zinsen",'DatenPlan 2012'!E$1:E$38) -> 850 | F11: =SUMIF('DatenPlan 2012'!$A$1:$A$38,"Zinsen",'DatenPlan 2012'!F$1:F$38) -> 850 | G11: =SUMIF('DatenPlan 2012'!$A$1:$A$38,"Zinsen",'DatenPlan 2012'!G$1:G$38) -> 850 | H11: =SUMIF('DatenPlan 2012'!$A$1:$A$38,"Zinsen",'DatenPlan 2012'!H$1:H$38) -> 850 | I11: =SUMIF('DatenPlan 2012'!$A$1:$A$38,"Zinsen",'DatenPlan 2012'!I$1:I$38) -> 850 | J11: =SUMIF('DatenPlan 2012'!$A$1:$A$38,"Zinsen",'DatenPlan 2012'!J$1:J$38) -> 850 | K11: =SUMIF('DatenPlan 2012'!$A$1:$A$38,"Zinsen",'DatenPlan 2012'!K$1:K$38) -> 850 | L11: =SUMIF('DatenPlan 2012'!$A$1:$A$38,"Zinsen",'DatenPlan 2012'!L$1:L$38) -> 850 | M11: =SUMIF('DatenPlan 2012'!$A$1:$A$38,"Zinsen",'DatenPlan 2012'!M$1:M$38) -> 850
A14: Daten Ist 2012
A16: Gesamt | B16: 1 | C16: 2 | D16: 3 | E16: 4 | F16: 5 | G16: 6 | H16: 7 | I16: 8 | J16: 9 | K16: 10 | L16: 11 | M16: 12
A17: Umsatz | B17: =SUMIF(DatenIst2012!$A$1:$A$38,"Umsatz",DatenIst2012!B$1:B$38) -> 37240 | C17: =SUMIF(DatenIst2012!$A$1:$A$38,"Umsatz",DatenIst2012!C$1:C$38) -> 37240 | D17: =SUMIF(DatenIst2012!$A$1:$A$38,"Umsatz",DatenIst2012!D$1:D$38) -> 37240 | E17: =SUMIF(DatenIst2012!$A$1:$A$38,"Umsatz",DatenIst2012!E$1:E$38) -> 37240 | F17: =SUMIF(DatenIst2012!$A$1:$A$38,"Umsatz",DatenIst2012!F$1:F$38) -> 37240 | G17: =SUMIF(DatenIst2012!$A$1:$A$38,"Umsatz",DatenIst2012!G$1:G$38) -> 37240 | H17: =SUMIF(DatenIst2012!$A$1:$A$38,"Umsatz",DatenIst2012!H$1:H$38) -> 37240 | I17: =SUMIF(DatenIst2012!$A$1:$A$38,"Umsatz",DatenIst2012!I$1:I$38) -> 37240 | J17: =SUMIF(DatenIst2012!$A$1:$A$38,"Umsatz",DatenIst2012!J$1:J$38) -> 37240 | K17: =SUMIF(DatenIst2012!$A$1:$A$38,"Umsatz",DatenIst2012!K$1:K$38) -> 37240 | L17: =SUMIF(DatenIst2012!$A$1:$A$38,"Umsatz",DatenIst2012!L$1:L$38) -> 37240 | M17: =SUMIF(DatenIst2012!$A$1:$A$38,"Umsatz",DatenIst2012!M$1:M$38) -> 37240
A18: Material | B18: =SUMIF(DatenIst2012!$A$1:$A$38,"Material",DatenIst2012!B$1:B$38) -> 9280 | C18: =SUMIF(DatenIst2012!$A$1:$A$38,"Material",DatenIst2012!C$1:C$38) -> 9280 | D18: =SUMIF(DatenIst2012!$A$1:$A$38,"Material",DatenIst2012!D$1:D$38) -> 9280 | E18: =SUMIF(DatenIst2012!$A$1:$A$38,"Material",DatenIst2012!E$1:E$38) -> 9280 | F18: =SUMIF(DatenIst2012!$A$1:$A$38,"Material",DatenIst2012!F$1:F$38) -> 9280 | G18: =SUMIF(DatenIst2012!$A$1:$A$38,"Material",DatenIst2012!G$1:G$38) -> 9280 | H18: =SUMIF(DatenIst2012!$A$1:$A$38,"Material",DatenIst2012!H$1:H$38) -> 9280 | I18: =SUMIF(DatenIst2012!$A$1:$A$38,"Material",DatenIst2012!I$1:I$38) -> 9280 | J18: =SUMIF(DatenIst2012!$A$1:$A$38,"Material",DatenIst2012!J$1:J$38) -> 9280 | K18: =SUMIF(DatenIst2012!$A$1:$A$38,"Material",DatenIst2012!K$1:K$38) -> 9280 | L18: =SUMIF(DatenIst2012!$A$1:$A$38,"Material",DatenIst2012!L$1:L$38) -> 9280 | M18: =SUMIF(DatenIst2012!$A$1:$A$38,"Material",DatenIst2012!M$1:M$38) -> 9280
A19: Fremdleistungen | B19: =SUMIF(DatenIst2012!$A$1:$A$38,"Fremdleistungen",DatenIst2012!B$1:B$38) -> 4380 | C19: =SUMIF(DatenIst2012!$A$1:$A$38,"Fremdleistungen",DatenIst2012!C$1:C$38) -> 4380 | D19: =SUMIF(DatenIst2012!$A$1:$A$38,"Fremdleistungen",DatenIst2012!D$1:D$38) -> 4380 | E19: =SUMIF(DatenIst2012!$A$1:$A$38,"Fremdleistungen",DatenIst2012!E$1:E$38) -> 4380 | F19: =SUMIF(DatenIst2012!$A$1:$A$38,"Fremdleistungen",DatenIst2012!F$1:F$38) -> 4380 | G19: =SUMIF(DatenIst2012!$A$1:$A$38,"Fremdleistungen",DatenIst2012!G$1:G$38) -> 4380 | H19: =SUMIF(DatenIst2012!$A$1:$A$38,"Fremdleistungen",DatenIst2012!H$1:H$38) -> 4380 | I19: =SUMIF(DatenIst2012!$A$1:$A$38,"Fremdleistungen",DatenIst2012!I$1:I$38) -> 4380 | J19: =SUMIF(DatenIst2012!$A$1:$A$38,"Fremdleistungen",DatenIst2012!J$1:J$38) -> 4380 | K19: =SUMIF(DatenIst2012!$A$1:$A$38,"Fremdleistungen",DatenIst2012!K$1:K$38) -> 4380 | L19: =SUMIF(DatenIst2012!$A$1:$A$38,"Fremdleistungen",DatenIst2012!L$1:L$38) -> 4380 | M19: =SUMIF(DatenIst2012!$A$1:$A$38,"Fremdleistungen",DatenIst2012!M$1:M$38) -> 4380
A20: Personal | B20: =SUMIF(DatenIst2012!$A$1:$A$38,"Personal",DatenIst2012!B$1:B$38) -> 9220 | C20: =SUMIF(DatenIst2012!$A$1:$A$38,"Personal",DatenIst2012!C$1:C$38) -> 9220 | D20: =SUMIF(DatenIst2012!$A$1:$A$38,"Personal",DatenIst2012!D$1:D$38) -> 9220 | E20: =SUMIF(DatenIst2012!$A$1:$A$38,"Personal",DatenIst2012!E$1:E$38) -> 9220 | F20: =SUMIF(DatenIst2012!$A$1:$A$38,"Personal",DatenIst2012!F$1:F$38) -> 9220 | G20: =SUMIF(DatenIst2012!$A$1:$A$38,"Personal",DatenIst2012!G$1:G$38) -> 9220 | H20: =SUMIF(DatenIst2012!$A$1:$A$38,"Personal",DatenIst2012!H$1:H$38) -> 9220 | I20: =SUMIF(DatenIst2012!$A$1:$A$38,"Personal",DatenIst2012!I$1:I$38) -> 9220 | J20: =SUMIF(DatenIst2012!$A$1:$A$38,"Personal",DatenIst2012!J$1:J$38) -> 9220 | K20: =SUMIF(DatenIst2012!$A$1:$A$38,"Personal",DatenIst2012!K$1:K$38) -> 9220 | L20: =SUMIF(DatenIst2012!$A$1:$A$38,"Personal",DatenIst2012!L$1:L$38) -> 9220 | M20: =SUMIF(DatenIst2012!$A$1:$A$38,"Personal",DatenIst2012!M$1:M$38) -> 9220
A21: Abschreibungen | B21: =SUMIF(DatenIst2012!$A$1:$A$38,"Abschreibungen",DatenIst2012!B$1:B$38) -> 7200 | C21: =SUMIF(DatenIst2012!$A$1:$A$38,"Abschreibungen",DatenIst2012!C$1:C$38) -> 7200 | D21: =SUMIF(DatenIst2012!$A$1:$A$38,"Abschreibungen",DatenIst2012!D$1:D$38) -> 7200 | E21: =SUMIF(DatenIst2012!$A$1:$A$38,"Abschreibungen",DatenIst2012!E$1:E$38) -> 7200 | F21: =SUMIF(DatenIst2012!$A$1:$A$38,"Abschreibungen",DatenIst2012!F$1:F$38) -> 7200 | G21: =SUMIF(DatenIst2012!$A$1:$A$38,"Abschreibungen",DatenIst2012!G$1:G$38) -> 7200 | H21: =SUMIF(DatenIst2012!$A$1:$A$38,"Abschreibungen",DatenIst2012!H$1:H$38) -> 7200 | I21: =SUMIF(DatenIst2012!$A$1:$A$38,"Abschreibungen",DatenIst2012!I$1:I$38) -> 7200 | J21: =SUMIF(DatenIst2012!$A$1:$A$38,"Abschreibungen",DatenIst2012!J$1:J$38) -> 7200 | K21: =SUMIF(DatenIst2012!$A$1:$A$38,"Abschreibungen",DatenIst2012!K$1:K$38) -> 7200 | L21: =SUMIF(DatenIst2012!$A$1:$A$38,"Abschreibungen",DatenIst2012!L$1:L$38) -> 7200 | M21: =SUMIF(DatenIst2012!$A$1:$A$38,"Abschreibungen",DatenIst2012!M$1:M$38) -> 7200
A22: Sonstiges | B22: =SUMIF(DatenIst2012!$A$1:$A$38,"Sonstiges",DatenIst2012!B$1:B$38) -> 3500 | C22: =SUMIF(DatenIst2012!$A$1:$A$38,"Sonstiges",DatenIst2012!C$1:C$38) -> 3500 | D22: =SUMIF(DatenIst2012!$A$1:$A$38,"Sonstiges",DatenIst2012!D$1:D$38) -> 3500 | E22: =SUMIF(DatenIst2012!$A$1:$A$38,"Sonstiges",DatenIst2012!E$1:E$38) -> 3500 | F22: =SUMIF(DatenIst2012!$A$1:$A$38,"Sonstiges",DatenIst2012!F$1:F$38) -> 3500 | G22: =SUMIF(DatenIst2012!$A$1:$A$38,"Sonstiges",DatenIst2012!G$1:G$38) -> 3500 | H22: =SUMIF(DatenIst2012!$A$1:$A$38,"Sonstiges",DatenIst2012!H$1:H$38) -> 3500 | I22: =SUMIF(DatenIst2012!$A$1:$A$38,"Sonstiges",DatenIst2012!I$1:I$38) -> 3500 | J22: =SUMIF(DatenIst2012!$A$1:$A$38,"Sonstiges",DatenIst2012!J$1:J$38) -> 3500 | K22: =SUMIF(DatenIst2012!$A$1:$A$38,"Sonstiges",DatenIst2012!K$1:K$38) -> 3500 | L22: =SUMIF(DatenIst2012!$A$1:$A$38,"Sonstiges",DatenIst2012!L$1:L$38) -> 3500 | M22: =SUMIF(DatenIst2012!$A$1:$A$38,"Sonstiges",DatenIst2012!M$1:M$38) -> 3500
A23: Zinsen | B23: =SUMIF(DatenIst2012!$A$1:$A$38,"Zinsen",DatenIst2012!B$1:B$38) -> 1100 | C23: =SUMIF(DatenIst2012!$A$1:$A$38,"Zinsen",DatenIst2012!C$1:C$38) -> 1100 | D23: =SUMIF(DatenIst2012!$A$1:$A$38,"Zinsen",DatenIst2012!D$1:D$38) -> 1100 | E23: =SUMIF(DatenIst2012!$A$1:$A$38,"Zinsen",DatenIst2012!E$1:E$38) -> 1100 | F23: =SUMIF(DatenIst2012!$A$1:$A$38,"Zinsen",DatenIst2012!F$1:F$38) -> 1100 | G23: =SUMIF(DatenIst2012!$A$1:$A$38,"Zinsen",DatenIst2012!G$1:G$38) -> 1100 | H23: =SUMIF(DatenIst2012!$A$1:$A$38,"Zinsen",DatenIst2012!H$1:H$38) -> 1100 | I23: =SUMIF(DatenIst2012!$A$1:$A$38,"Zinsen",DatenIst2012!I$1:I$38) -> 1100 | J23: =SUMIF(DatenIst2012!$A$1:$A$38,"Zinsen",DatenIst2012!J$1:J$38) -> 1100 | K23: =SUMIF(DatenIst2012!$A$1:$A$38,"Zinsen",DatenIst2012!K$1:K$38) -> 1100 | L23: =SUMIF(DatenIst2012!$A$1:$A$38,"Zinsen",DatenIst2012!L$1:L$38) -> 1100 | M23: =SUMIF(DatenIst2012!$A$1:$A$38,"Zinsen",DatenIst2012!M$1:M$38) -> 1100
A26: Namen: | B26: B5:M11 | C26: GesamtPlan2012
B27: B17:M23 | C27: GesamtIst2012

Sheet DatenPlan 2012
A2: Daten Plan 2012
A4: K2401 | B4: 1 | C4: 2 | D4: 3 | E4: 4 | F4: 5 | G4: 6 | H4: 7 | I4: 8 | J4: 9 | K4: 10 | L4: 11 | M4: 12
A5: Umsatz | B5: 9400 | C5: 9400 | D5: 9400 | E5: 9400 | F5: 9400 | G5: 9400 | H5: 9400 | I5: 9400 | J5: 9400 | K5: 9400 | L5: 9400 | M5: 9400
A6: Material | B6: 2300 | C6: 2300 | D6: 2300 | E6: 2300 | F6: 2300 | G6: 2300 | H6: 2300 | I6: 2300 | J6: 2300 | K6: 2300 | L6: 2300 | M6: 2300
A7: Fremdleistungen | B7: 1100 | C7: 1100 | D7: 1100 | E7: 1100 | F7: 1100 | G7: 1100 | H7: 1100 | I7: 1100 | J7: 1100 | K7: 1100 | L7: 1100 | M7: 1100
A8: Personal | B8: 2400 | C8: 2400 | D8: 2400 | E8: 2400 | F8: 2400 | G8: 2400 | H8: 2400 | I8: 2400 | J8: 2400 | K8: 2400 | L8: 2400 | M8: 2400
A9: Abschreibungen | B9: 1800 | C9: 1800 | D9: 1800 | E9: 1800 | F9: 1800 | G9: 1800 | H9: 1800 | I9: 1800 | J9: 1800 | K9: 1800 | L9: 1800 | M9: 1800
A10: Sonstiges | B10: 700 | C10: 700 | D10: 700 | E10: 700 | F10: 700 | G10: 700 | H10: 700 | I10: 700 | J10: 700 | K10: 700 | L10: 700 | M10: 700
A11: Zinsen | B11: 220 | C11: 220 | D11: 220 | E11: 220 | F11: 220 | G11: 220 | H11: 220 | I11: 220 | J11: 220 | K11: 220 | L11: 220 | M11: 220
A13: K2402 | B13: 1 | C13: 2 | D13: 3 | E13: 4 | F13: 5 | G13: 6 | H13: 7 | I13: 8 | J13: 9 | K13: 10 | L13: 11 | M13: 12
A14: Umsatz | B14: 9300 | C14: 9300 | D14: 9300 | E14: 9300 | F14: 9300 | G14: 9300 | H14: 9300 | I14: 9300 | J14: 9300 | K14: 9300 | L14: 9300 | M14: 9300
A15: Material | B15: 2100 | C15: 2100 | D15: 2100 | E15: 2100 | F15: 2100 | G15: 2100 | H15: 2100 | I15: 2100 | J15: 2100 | K15: 2100 | L15: 2100 | M15: 2100
A16: Fremdleistungen | B16: 1200 | C16: 1200 | D16: 1200 | E16: 1200 | F16: 1200 | G16: 1200 | H16: 1200 | I16: 1200 | J16: 1200 | K16: 1200 | L16: 1200 | M16: 1200
A17: Personal | B17: 2500 | C17: 2500 | D17: 2500 | E17: 2500 | F17: 2500 | G17: 2500 | H17: 2500 | I17: 2500 | J17: 2500 | K17: 2500 | L17: 2500 | M17: 2500
A18: Abschreibungen | B18: 1800 | C18: 1800 | D18: 1800 | E18: 1800 | F18: 1800 | G18: 1800 | H18: 1800 | I18: 1800 | J18: 1800 | K18: 1800 | L18: 1800 | M18: 1800
A19: Sonstiges | B19: 1200 | C19: 1200 | D19: 1200 | E19: 1200 | F19: 1200 | G19: 1200 | H19: 1200 | I19: 1200 | J19: 1200 | K19: 1200 | L19: 1200 | M19: 1200
A20: Zinsen | B20: 210 | C20: 210 | D20: 210 | E20: 210 | F20: 210 | G20: 210 | H20: 210 | I20: 210 | J20: 210 | K20: 210 | L20: 210 | M20: 210
A22: K2403 | B22: 1 | C22: 2 | D22: 3 | E22: 4 | F22: 5 | G22: 6 | H22: 7 | I22: 8 | J22: 9 | K22: 10 | L22: 11 | M22: 12
A23: Umsatz | B23: 9300 | C23: 9300 | D23: 9300 | E23: 9300 | F23: 9300 | G23: 9300 | H23: 9300 | I23: 9300 | J23: 9300 | K23: 9300 | L23: 9300 | M23: 9300
A24: Material | B24: 2100 | C24: 2100 | D24: 2100 | E24: 2100 | F24: 2100 | G24: 2100 | H24: 2100 | I24: 2100 | J24: 2100 | K24: 2100 | L24: 2100 | M24: 2100
A25: Fremdleistungen | B25: 1200 | C25: 1200 | D25: 1200 | E25: 1200 | F25: 1200 | G25: 1200 | H25: 1200 | I25: 1200 | J25: 1200 | K25: 1200 | L25: 1200 | M25: 1200
A26: Personal | B26: 2500 | C26: 2500 | D26: 2500 | E26: 2500 | F26: 2500 | G26: 2500 | H26: 2500 | I26: 2500 | J26: 2500 | K26: 2500 | L26: 2500 | M26: 2500
A27: Abschreibungen | B27: 1800 | C27: 1800 | D27: 1800 | E27: 1800 | F27: 1800 | G27: 1800 | H27: 1800 | I27: 1800 | J27: 1800 | K27: 1800 | L27: 1800 | M27: 1800
A28: Sonstiges | B28: 1200 | C28: 1200 | D28: 1200 | E28: 1200 | F28: 1200 | G28: 1200 | H28: 1200 | I28: 1200 | J28: 1200 | K28: 1200 | L28: 1200 | M28: 1200
A29: Zinsen | B29: 210 | C29: 210 | D29: 210 | E29: 210 | F29: 210 | G29: 210 | H29: 210 | I29: 210 | J29: 210 | K29: 210 | L29: 210 | M29: 210
A31: K2404 | B31: 1 | C31: 2 | D31: 3 | E31: 4 | F31: 5 | G31: 6 | H31: 7 | I31: 8 | J31: 9 | K31: 10 | L31: 11 | M31: 12
A32: Umsatz | B32: 9300 | C32: 9300 | D32: 9300 | E32: 9300 | F32: 9300 | G32: 9300 | H32: 9300 | I32: 9300 | J32: 9300 | K32: 9300 | L32: 9300 | M32: 9300
A33: Material | B33: 2100 | C33: 2100 | D33: 2100 | E33: 2100 | F33: 2100 | G33: 2100 | H33: 2100 | I33: 2100 | J33: 2100 | K33: 2100 | L33: 2100 | M33: 2100
A34: Fremdleistungen | B34: 1200 | C34: 1200 | D34: 1200 | E34: 1200 | F34: 1200 | G34: 1200 | H34: 1200 | I34: 1200 | J34: 1200 | K34: 1200 | L34: 1200 | M34: 1200
A35: Personal | B35: 2500 | C35: 2500 | D35: 2500 | E35: 2500 | F35: 2500 | G35: 2500 | H35: 2500 | I35: 2500 | J35: 2500 | K35: 2500 | L35: 2500 | M35: 2500
A36: Abschreibungen | B36: 1800 | C36: 1800 | D36: 1800 | E36: 1800 | F36: 1800 | G36: 1800 | H36: 1800 | I36: 1800 | J36: 1800 | K36: 1800 | L36: 1800 | M36: 1800
A37: Sonstiges | B37: 1200 | C37: 1200 | D37: 1200 | E37: 1200 | F37: 1200 | G37: 1200 | H37: 1200 | I37: 1200 | J37: 1200 | K37: 1200 | L37: 1200 | M37: 1200
A38: Zinsen | B38: 210 | C38: 210 | D38: 210 | E38: 210 | F38: 210 | G38: 210 | H38: 210 | I38: 210 | J38: 210 | K38: 210 | L38: 210 | M38: 210
A41: Gesamt Umsatz 1-9 | B41: =SUMME(INDEX(K2401Plan2012;1;1):INDEX(K2401Plan2012;1;9);INDEX(K2402Plan2012;1;1):INDEX(K2402Plan2012;1;9);INDEX(K2403Plan2012;1;1):INDEX(K2403Plan2012;1;9);INDEX(K2404Plan2012;1;1):INDEX(K2404Plan2012;1;9))
B42: =SUM(INDEX(K2401Plan2012,1,1):INDEX(K2401Plan2012,1,9),INDEX(K2402Plan2012,1,1):INDEX(K2402Plan2012,1,9),INDEX(K2403Plan2012,1,1):INDEX(K2403Plan2012,1,9),INDEX(K2404Plan2012,1,1):INDEX(K2404Plan2012,1,9)) -> 335700
B44: =TEILERGEBNIS(9;INDEX(K2401Plan2012;1;1):INDEX(K2401Plan2012;1;9);INDEX(K2402Plan2012;1;1):INDEX(K2402Plan2012;1;9);INDEX(K2403Plan2012;1;1):INDEX(K2403Plan2012;1;9);INDEX(K2404Plan2012;1;1):INDEX(K2404Plan2012;1;9))
B45: =SUBTOTAL(9,INDEX(K2401Plan2012,1,1):INDEX(K2401Plan2012,1,9),INDEX(K2402Plan2012,1,1):INDEX(K2402Plan2012,1,9),INDEX(K2403Plan2012,1,1):INDEX(K2403Plan2012,1,9),INDEX(K2404Plan2012,1,1):INDEX(K2404Plan2012,1,9)) -> 335700
B47: =SUMME(SUMMEWENN(A:A;"Umsatz";INDIREKT({"B:B"."C:C"."D:D"."E:E"."F:F"."G:G"."H:H"."I:I"."J:J"})))
B48: =SUM(SUMIF(A:A,"Umsatz",INDIRECT({"B:B","C:C","D:D","E:E","F:F","G:G","H:H","I:I","J:J"}))) -> 335700
B50: {=SUMME(($A1:$A44="Umsatz")*B1:J44)}
B51: =SUM(($A1:$A39="Umsatz")*B1:J39) -> 335700
B53: {=SUMMENPRODUKT((A1:A43="Umsatz")*B1:J43)}
B54: =SUMPRODUCT((A1:A38="Umsatz")*B1:J38) -> 335700
B56: =SUMME(BEREICH.VERSCHIEBEN(KnotenK2401;1;1;1;9);BEREICH.VERSCHIEBEN(KnotenK2402;1;1;1;9);BEREICH.VERSCHIEBEN(KnotenK2403;1;1;1;9);BEREICH.VERSCHIEBEN(KnotenK2404;1;1;1;9))
B57: =SUM(OFFSET(KnotenK2401,1,1,1,9),OFFSET(KnotenK2402,1,1,1,9),OFFSET(KnotenK2403,1,1,1,9),OFFSET(KnotenK2404,1,1,1,9)) -> 335700
A59: Namen: | B59: B5:M11 | C59: K2401Plan2012
B60: B14:M21 | C60: K2402Plan2012
B61: B28:M34 | C61: K2403Plan2012
B62: B37:M43 | C62: K2404Plan2012

Sheet DatenIst2012
A2: Daten Ist 2012
A4: K2401 | B4: 1 | C4: 2 | D4: 3 | E4: 4 | F4: 5 | G4: 6 | H4: 7 | I4: 8 | J4: 9 | K4: 10 | L4: 11 | M4: 12
A5: Umsatz | B5: 9280 | C5: 9280 | D5: 9280 | E5: 9280 | F5: 9280 | G5: 9280 | H5: 9280 | I5: 9280 | J5: 9280 | K5: 9280 | L5: 9280 | M5: 9280
A6: Material | B6: 2350 | C6: 2350 | D6: 2350 | E6: 2350 | F6: 2350 | G6: 2350 | H6: 2350 | I6: 2350 | J6: 2350 | K6: 2350 | L6: 2350 | M6: 2350
A7: Fremdleistungen | B7: 1070 | C7: 1070 | D7: 1070 | E7: 1070 | F7: 1070 | G7: 1070 | H7: 1070 | I7: 1070 | J7: 1070 | K7: 1070 | L7: 1070 | M7: 1070
A8: Personal | B8: 2290 | C8: 2290 | D8: 2290 | E8: 2290 | F8: 2290 | G8: 2290 | H8: 2290 | I8: 2290 | J8: 2290 | K8: 2290 | L8: 2290 | M8: 2290
A9: Abschreibungen | B9: 1800 | C9: 1800 | D9: 1800 | E9: 1800 | F9: 1800 | G9: 1800 | H9: 1800 | I9: 1800 | J9: 1800 | K9: 1800 | L9: 1800 | M9: 1800
A10: Sonstiges | B10: 630 | C10: 630 | D10: 630 | E10: 630 | F10: 630 | G10: 630 | H10: 630 | I10: 630 | J10: 630 | K10: 630 | L10: 630 | M10: 630
A11: Zinsen | B11: 220 | C11: 220 | D11: 220 | E11: 220 | F11: 220 | G11: 220 | H11: 220 | I11: 220 | J11: 220 | K11: 220 | L11: 220 | M11: 220
A13: K2402 | B13: 1 | C13: 2 | D13: 3 | E13: 4 | F13: 5 | G13: 6 | H13: 7 | I13: 8 | J13: 9 | K13: 10 | L13: 11 | M13: 12
A14: Umsatz | B14: 9340 | C14: 9340 | D14: 9340 | E14: 9340 | F14: 9340 | G14: 9340 | H14: 9340 | I14: 9340 | J14: 9340 | K14: 9340 | L14: 9340 | M14: 9340
A15: Material | B15: 2290 | C15: 2290 | D15: 2290 | E15: 2290 | F15: 2290 | G15: 2290 | H15: 2290 | I15: 2290 | J15: 2290 | K15: 2290 | L15: 2290 | M15: 2290
A16: Fremdleistungen | B16: 1120 | C16: 1120 | D16: 1120 | E16: 1120 | F16: 1120 | G16: 1120 | H16: 1120 | I16: 1120 | J16: 1120 | K16: 1120 | L16: 1120 | M16: 1120
A17: Personal | B17: 2320 | C17: 2320 | D17: 2320 | E17: 2320 | F17: 2320 | G17: 2320 | H17: 2320 | I17: 2320 | J17: 2320 | K17: 2320 | L17: 2320 | M17: 2320
A18: Abschreibungen | B18: 1800 | C18: 1800 | D18: 1800 | E18: 1800 | F18: 1800 | G18: 1800 | H18: 1800 | I18: 1800 | J18: 1800 | K18: 1800 | L18: 1800 | M18: 1800
A19: Sonstiges | B19: 1120 | C19: 1120 | D19: 1120 | E19: 1120 | F19: 1120 | G19: 1120 | H19: 1120 | I19: 1120 | J19: 1120 | K19: 1120 | L19: 1120 | M19: 1120
A20: Zinsen | B20: 330 | C20: 330 | D20: 330 | E20: 330 | F20: 330 | G20: 330 | H20: 330 | I20: 330 | J20: 330 | K20: 330 | L20: 330 | M20: 330
A22: K2403 | B22: 1 | C22: 2 | D22: 3 | E22: 4 | F22: 5 | G22: 6 | H22: 7 | I22: 8 | J22: 9 | K22: 10 | L22: 11 | M22: 12
A23: Umsatz | B23: 9280 | C23: 9280 | D23: 9280 | E23: 9280 | F23: 9280 | G23: 9280 | H23: 9280 | I23: 9280 | J23: 9280 | K23: 9280 | L23: 9280 | M23: 9280
A24: Material | B24: 2350 | C24: 2350 | D24: 2350 | E24: 2350 | F24: 2350 | G24: 2350 | H24: 2350 | I24: 2350 | J24: 2350 | K24: 2350 | L24: 2350 | M24: 2350
A25: Fremdleistungen | B25: 1070 | C25: 1070 | D25: 1070 | E25: 1070 | F25: 1070 | G25: 1070 | H25: 1070 | I25: 1070 | J25: 1070 | K25: 1070 | L25: 1070 | M25: 1070
A26: Personal | B26: 2290 | C26: 2290 | D26: 2290 | E26: 2290 | F26: 2290 | G26: 2290 | H26: 2290 | I26: 2290 | J26: 2290 | K26: 2290 | L26: 2290 | M26: 2290
A27: Abschreibungen | B27: 1800 | C27: 1800 | D27: 1800 | E27: 1800 | F27: 1800 | G27: 1800 | H27: 1800 | I27: 1800 | J27: 1800 | K27: 1800 | L27: 1800 | M27: 1800
A28: Sonstiges | B28: 630 | C28: 630 | D28: 630 | E28: 630 | F28: 630 | G28: 630 | H28: 630 | I28: 630 | J28: 630 | K28: 630 | L28: 630 | M28: 630
A29: Zinsen | B29: 220 | C29: 220 | D29: 220 | E29: 220 | F29: 220 | G29: 220 | H29: 220 | I29: 220 | J29: 220 | K29: 220 | L29: 220 | M29: 220
A31: K2404 | B31: 1 | C31: 2 | D31: 3 | E31: 4 | F31: 5 | G31: 6 | H31: 7 | I31: 8 | J31: 9 | K31: 10 | L31: 11 | M31: 12
A32: Umsatz | B32: 9340 | C32: 9340 | D32: 9340 | E32: 9340 | F32: 9340 | G32: 9340 | H32: 9340 | I32: 9340 | J32: 9340 | K32: 9340 | L32: 9340 | M32: 9340
A33: Material | B33: 2290 | C33: 2290 | D33: 2290 | E33: 2290 | F33: 2290 | G33: 2290 | H33: 2290 | I33: 2290 | J33: 2290 | K33: 2290 | L33: 2290 | M33: 2290
A34: Fremdleistungen | B34: 1120 | C34: 1120 | D34: 1120 | E34: 1120 | F34: 1120 | G34: 1120 | H34: 1120 | I34: 1120 | J34: 1120 | K34: 1120 | L34: 1120 | M34: 1120
A35: Personal | B35: 2320 | C35: 2320 | D35: 2320 | E35: 2320 | F35: 2320 | G35: 2320 | H35: 2320 | I35: 2320 | J35: 2320 | K35: 2320 | L35: 2320 | M35: 2320
A36: Abschreibungen | B36: 1800 | C36: 1800 | D36: 1800 | E36: 1800 | F36: 1800 | G36: 1800 | H36: 1800 | I36: 1800 | J36: 1800 | K36: 1800 | L36: 1800 | M36: 1800
A37: Sonstiges | B37: 1120 | C37: 1120 | D37: 1120 | E37: 1120 | F37: 1120 | G37: 1120 | H37: 1120 | I37: 1120 | J37: 1120 | K37: 1120 | L37: 1120 | M37: 1120
A38: Zinsen | B38: 330 | C38: 330 | D38: 330 | E38: 330 | F38: 330 | G38: 330 | H38: 330 | I38: 330 | J38: 330 | K38: 330 | L38: 330 | M38: 330
A41: Namen: | B41: B5:M11 | C41: K2401Ist2012 | E41: B23:M29 | F41: K2403Ist2012
B42: B14:M20 | C42: K2402Ist2012 | E42: B32:M38 | F42: K2404Ist2012

Sheet Listen
A3: =COUNTA(A6:A33) -> 3 | B3: 12 | C3: 3 | E3: =COUNTA(E6:E33) -> 5 | F3: 8 | G3: 17 | I3: =COUNTA(I6:I33) -> 22
A5: Jahr | B5: Monat | C5: Formel | E5: KST | F5: Kennziffer | G5: Faktor | I5: Namensliste
A6: 2012 | B6: 1 | C6: HR.1 | D6: Ist kum / Ist Monate * 12 | E6: K2401 | F6: Umsatz | G6: 0.92 | I6: Faktor | J6: =Listen!$G$6:$G$22
A7: 2013 | B7: 2 | C7: HR.2 | D7: Ist kum + restliche Planwerte | E7: K2402 | F7: Material | G7: 0.93 | I7: Formel | J7: =Listen!$C$6:$C$8
A8: 2014 | B8: 3 | C8: HR.3 | D8: Ist kum + (restliche Planwerte*Faktor) | E8: K2403 | F8: Fremdleistungen | G8: 0.94 | I8: Fremdleistungen | J8: =AUSWERTEN(INDIREKT(Auswertung!$E$5&"_"&Auswertung!$B$14))
B9: 4 | E9: K2404 | F9: Personal | G9: 0.95 | I9: GesamtIst2012 | J9: =Vorauswertung!$B$17:$M$23
B10: 5 | E10: Gesamt | F10: Abschreibungen | G10: 0.96 | I10: GesamtPlan2012 | J10: =Vorauswertung!$B$5:$M$11
B11: 6 | F11: Sonstiges | G11: 0.97 | I11: Jahr | J11: =Listen!$A$6:$A$8
B12: 7 | F12: Zinsen | G12: 0.98 | I12: K2401Ist2012 | J12: =DatenIst2012!$B$5:$M$11
B13: 8 | F13: Ergebnis | G13: 0.99 | I13: K2401Plan2012 | J13: ='DatenPlan 2012'!$B$5:$M$11
B14: 9 | G14: 1 | I14: K2402Ist2012 | J14: =DatenIst2012!$B$14:$M$20
B15: 10 | G15: 1.01 | I15: K2402Plan2012 | J15: ='DatenPlan 2012'!$B$14:$M$20
B16: 11 | G16: 1.02 | I16: K2403Ist2012 | J16: =DatenIst2012!$B$23:$M$29
B17: 12 | G17: 1.03 | I17: K2403Plan2012 | J17: ='DatenPlan 2012'!$B$23:$M$29
G18: 1.04 | I18: K2404Ist2012 | J18: =DatenIst2012!$B$32:$M$38
G19: 1.05 | I19: K2404Plan2012 | J19: ='DatenPlan 2012'!$B$32:$M$38
G20: 1.06 | I20: Kennziffer | J20: =Listen!$F$6:$F$13
G21: 1.07 | I21: KnotenFormel | J21: =Listen!$C$5
G22: 1.08 | I22: KnotenK2401 | J22: ='DatenPlan 2012'!$A$4
I23: KnotenK2402 | J23: ='DatenPlan 2012'!$A$13
I24: KnotenK2403 | J24: ='DatenPlan 2012'!$A$22
I25: KnotenK2404 | J25: ='DatenPlan 2012'!$A$31
I26: KST | J26: =Listen!$E$6:$E$10
I27: Monat | J27: =Listen!$B$6:$B$17

Sheet Planvorgabe2013
A2: Vorschaurechnung: | C2: Kostenstelle | D2: =Auswertung!E2 -> K2401
A4: Jahr: | B4: 2013 | D4: Variator: | E4: 1.01
A5: von Monat: | B5: 1
A6: bis Monat: | B6: 12
A10: Kennziffer | B10: Vorschau | C10: Plan- | D10: Aufteilung Plan auf Monate | P10: Plan
B11: 2012 | C11: vorschlag | D11: 1 | E11: 2 | F11: 3 | G11: 4 | H11: 5 | I11: 6 | J11: 7 | K11: 8 | L11: 9 | M11: 10 | N11: 11 | O11: 12 | P11: 2013
A12: Umsatz | B12: =Auswertung!H12 -> 113208 | C12: =$B12*$E$4 -> 114340.08 | D12: =ROUND($C12/12,0) -> 9528 | E12: =ROUND($C12/12,0) -> 9528 | F12: 9528 | G12: 9528 | H12: 9528 | I12: 9528 | J12: 9528 | K12: 9528 | L12: 9528 | M12: 9528 | N12: 9528 | O12: 9528 | P12: =SUM(D12:O12) -> 114336
A13: Material | B13: =Auswertung!H13 -> 28176 | C13: =$B13*$E$4 -> 28457.76 | D13: =ROUND($C13/12,0) -> 2371 | E13: 2371 | F13: 2371 | G13: 2371 | H13: 2371 | I13: 2371 | J13: 2371 | K13: 2371 | L13: 2371 | M13: 2371 | N13: 2371 | O13: 2371 | P13: 28452
A14: Fremdleistungen | B14: =Auswertung!H14 -> 13152 | C14: 13283.52 | D14: =ROUND($C14/12,0) -> 1107 | E14: 1107 | F14: 1107 | G14: 1107 | H14: 1107 | I14: 1107 | J14: 1107 | K14: 1107 | L14: 1107 | M14: 1107 | N14: 1107 | O14: 1107 | P14: 13284
A15: Personal | B15: =Auswertung!H15 -> 28428 | C15: 28712.28 | D15: =ROUND($C15/12,0) -> 2393 | E15: 2393 | F15: 2393 | G15: 2393 | H15: 2393 | I15: 2393 | J15: 2393 | K15: 2393 | L15: 2393 | M15: 2393 | N15: 2393 | O15: 2393 | P15: 28716
A16: Abschreibungen | B16: =Auswertung!H16 -> 21816 | C16: 22034.16 | D16: =ROUND($C16/12,0) -> 1836 | E16: 1836 | F16: 1836 | G16: 1836 | H16: 1836 | I16: 1836 | J16: 1836 | K16: 1836 | L16: 1836 | M16: 1836 | N16: 1836 | O16: 1836 | P16: 22032
A17: Sonstiges | B17: =Auswertung!H17 -> 8064 | C17: 8144.64 | D17: =ROUND($C17/12,0) -> 679 | E17: 679 | F17: 679 | G17: 679 | H17: 679 | I17: 679 | J17: 679 | K17: 679 | L17: 679 | M17: 679 | N17: 679 | O17: 679 | P17: 8148
A18: Zinsen | B18: =Auswertung!H18 -> 2666.4 | C18: 2693.064 | D18: =ROUND($C18/12,0) -> 224 | E18: 224 | F18: 224 | G18: 224 | H18: 224 | I18: 224 | J18: 224 | K18: 224 | L18: 224 | M18: 224 | N18: 224 | O18: 224 | P18: 2688
A19: Ergebnis | B19: =B12-B13-B14-B15-B16-B17-B18 -> 10905.6 | C19: =C12-C13-C14-C15-C16-C17-C18 -> 11014.656 | D19: 918 | E19: 918 | F19: 918 | G19: 918 | H19: 918 | I19: 918 | J19: 918 | K19: 918 | L19: 918 | M19: 918 | N19: 918 | O19: 918 | P19: 11016
